bitfinex/quotes_ETHUSD_20250806
["timestamp","ask_amount","ask_price","bid_price","bid_amount"]
[1754463153238,1e-08,3645.0,3644.9,10.75037695]
[1754463154728,0.49180001,3645.0,3644.9,10.75037695]
[1754463155671,1e-08,3645.0,3644.9,10.75037695]
[1754463158150,0.49180001,3645.0,3644.9,10.75037695]
[1754463159970,1e-08,3645.0,3644.9,10.75037695]
[1754463161237,0.47350001,3645.0,3644.9,10.75037695]
[1754463161439,0.94450001,3645.0,3644.9,0.31566152]
[1754463161644,1.08130001,3645.0,3644.2,0.1376]
[1754463161861,0.1368,3644.7,3644.6,2.74378532]
[1754463162077,0.1368,3644.7,3644.3,0.20203391]
[1754463162078,1.0813,3644.7,3644.3,0.20203391]
[1754463162376,1.0813,3644.7,3643.8,0.002]
[1754463162377,0.9445,3644.6,3643.8,0.002]
[1754463162547,0.9445,3644.5,3644.1,2.74415434]
[1754463162874,0.9445,3644.4,3644.2,2.74408646]
[1754463163033,0.1376,3644.2,3644.1,2.74414119]
[1754463163377,1.0821,3644.2,3644.0,2.95464783]
[1754463163676,0.1376,3644.2,3644.1,2.74416179]
[1754463164184,1.0821,3644.2,3644.1,2.74416179]
[1754463169472,1e-08,3645.0,3644.5,2.74386061]
[1754463169646,2.113,3644.9,3644.5,2.74386061]
[1754463169846,0.1368,3644.6,3644.5,2.74386061]
[1754463170045,0.6103,3644.6,3644.5,2.74386061]
[1754463170280,1.0813,3644.6,3644.5,2.74386061]
[1754463170682,1.0813,3644.6,3644.2,2.7440739]
[1754463170891,0.1368,3644.4,3644.1,2.746161]
[1754463171196,0.1368,3644.4,3644.3,2.74394514]
[1754463171689,1.0813,3644.4,3644.3,2.74394514]
[1754463177702,1e-08,3645.0,3644.9,2.74355949]
[1754463177999,0.47100001,3645.0,3644.9,2.74355949]
[1754463178193,0.60780001,3645.0,3644.9,2.74355949]
[1754463178362,1.08130001,3645.0,3644.9,2.74355949]
[1754463182583,0.13680001,3645.0,3644.9,2.74355949]
[1754463182783,1.08130001,3645.0,3644.9,2.74355949]
[1754463185985,0.13680001,3645.0,3644.9,2.74355949]
[1754463186185,1.08130001,3645.0,3644.9,2.74355949]
[1754463188624,1.08130001,3645.0,3644.6,4.27999999]
[1754463188921,0.1368,3644.8,3644.6,4.27999999]
[1754463189122,0.9445,3644.7,3644.6,7.02378217]
[1754463189725,0.9445,3644.7,3644.6,4.27999999]
[1754463192898,0.55,3644.6,3644.1,0.002]
[1754463193243,0.1376,3644.2,3644.1,0.002]
[1754463193598,1.0512,3644.2,3644.1,0.002]
[1754463193793,4.34528649,3644.2,3644.1,0.002]
[1754463194258,4.34528649,3644.2,3643.7,0.002]
[1754463194259,3.29431241,3643.9,3643.7,0.002]
[1754463194460,8.40631241,3643.9,3643.7,0.002]
[1754463194834,9.31991241,3643.9,3643.7,0.002]
[1754463202226,9.31991241,3643.9,3643.8,1e-08]
[1754463203153,3.29446304,3643.7,3643.6,0.002]
[1754463203356,30.67248218,3643.7,3643.6,0.002]
[1754463203560,31.58608218,3643.7,3643.6,0.002]
[1754463204243,31.72368218,3643.7,3643.6,0.002]
[1754463204735,9.45766304,3643.7,3643.6,0.002]
[1754463205075,8.90766304,3643.7,3643.6,0.002]
[1754463205320,9.45766304,3643.7,3643.6,0.002]
[1754463205970,33.83568218,3643.7,3643.6,0.002]
[1754463207598,9.45766304,3643.7,3643.6,0.002]
[1754463208780,7.85646304,3643.7,3643.6,0.002]
[1754463209085,2.2496,3643.7,3643.6,0.002]
[1754463209586,2.7996,3643.7,3643.6,0.002]
[1754463210154,2.2496,3643.7,3643.6,0.002]
[1754463211090,2.2496,3643.7,3643.6,0.7456]
[1754463211264,0.1376,3643.7,3643.6,0.7456]
[1754463211463,2.2496,3643.7,3643.6,0.7456]
[1754463211677,0.1376,3643.7,3643.6,3.49013836]
[1754463211858,2.2496,3643.7,3643.6,4.11401893]
[1754463212903,2.112,3643.7,3643.6,4.11401893]
[1754463213598,2.662,3643.7,3643.6,0.002]
[1754463213905,3.1343,3643.7,3643.6,0.002]
[1754463214199,2.662,3643.7,3643.6,0.002]
[1754463214499,2.112,3643.7,3643.6,0.002]
[1754463214808,2.662,3643.7,3643.6,0.002]
[1754463217585,6.32006304,3643.7,3643.6,0.002]
[1754463221382,9.32006304,3643.7,3643.6,0.002]
[1754463222989,9.45766304,3643.7,3643.6,0.002]
[1754463223503,9.49086304,3643.7,3643.6,0.002]
[1754463224206,3.29468902,3643.4,3643.3,0.002]
[1754463224368,8.54428902,3643.4,3643.3,0.002]
[1754463224566,9.49108902,3643.4,3643.3,1e-08]
[1754463224771,9.35348902,3643.4,3643.3,1e-08]
[1754463227710,6.29476436,3643.3,3643.2,1e-08]
[1754463228009,6.2948397,3643.2,3643.1,1e-08]
[1754463228309,9.3536397,3643.2,3643.1,1e-08]
[1754463229075,9.3536397,3643.2,3642.5,0.002]
[1754463229076,3.29499039,3643.0,3642.5,0.002]
[1754463229276,5.40699039,3643.0,3642.5,0.002]
[1754463229580,6.35379039,3643.0,3642.5,0.002]
[1754463229914,3.29506574,3642.9,3642.5,0.002]
[1754463230409,4.24186574,3642.9,3642.5,0.002]
[1754463230813,7.24186574,3642.9,3642.8,1e-08]
[1754463231803,7.24186574,3642.9,3642.7,1e-08]
[1754463232004,6.29529182,3642.6,3642.5,1e-08]
[1754463232205,8.40729182,3642.6,3642.5,1e-08]
[1754463232405,9.35409182,3642.6,3642.5,1e-08]
[1754463234609,10.13309182,3642.6,3642.5,1e-08]
[1754463234783,9.35409182,3642.6,3642.5,1e-08]
[1754463235118,9.49169182,3642.6,3642.5,1e-08]
[1754463236524,5.88289182,3642.6,3642.5,1e-08]
[1754463236823,8.54589182,3642.6,3642.5,1e-08]
[1754463237319,7.99589182,3642.6,3642.5,1e-08]
[1754463237521,7.99589182,3642.6,3642.5,0.44070001]
[1754463237522,4.99589182,3642.6,3642.5,0.44070001]
[1754463237690,2.88289182,3642.6,3642.5,0.74360001]
[1754463237885,2.2506,3642.6,3642.5,0.74360001]
[1754463241524,5.54589182,3642.6,3642.5,1e-08]
[1754463241929,9.49269182,3642.6,3642.5,1e-08]
[1754463245699,12.79069182,3642.6,3642.5,1e-08]
[1754463246129,14.12714447,3642.6,3642.5,1e-08]
[1754463252692,37.2298215,3642.6,3642.5,1e-08]
[1754463253054,13.18034447,3642.6,3642.5,1e-08]
[1754463253455,13.63974447,3642.6,3642.5,1e-08]
[1754463254211,14.09224447,3642.6,3642.5,1e-08]
[1754463256063,9.18636719,3642.5,3642.4,1e-08]
[1754463256387,11.43306083,3642.5,3642.4,1e-08]
[1754463256704,11.43306083,3642.5,3641.7,0.002]
[1754463256705,6.29589488,3641.8,3641.7,0.002]
[1754463256924,31.51157191,3641.8,3641.7,0.002]
[1754463257098,32.94833401,3641.8,3641.7,0.002]
[1754463257406,33.86023401,3641.8,3641.7,0.002]
[1754463257549,7.73265698,3641.8,3641.7,0.002]
[1754463257754,9.84565698,3641.8,3641.7,0.4427]
[1754463258501,9.84565698,3641.8,3641.7,0.002]
[1754463259384,9.84565698,3641.8,3641.7,0.7456]
[1754463259554,7.73265698,3641.8,3641.7,0.7456]
[1754463259754,9.84565698,3641.8,3641.7,0.7456]
[1754463261670,9.84565698,3641.8,3641.7,0.002]
[1754463261869,7.0997621,3641.8,3641.7,0.002]
[1754463262102,7.0997621,3641.8,3641.7,0.7456]
[1754463262266,9.84565698,3641.8,3641.7,0.4427]
[1754463262789,4.0997621,3641.8,3641.7,0.4427]
[1754463262955,6.84565698,3641.8,3641.7,0.4427]
[1754463263385,6.84565698,3641.8,3641.7,0.002]
[1754463265729,7.30505698,3641.8,3641.7,0.002]
[1754463265942,6.84565698,3641.8,3641.7,0.002]
[1754463266088,6.84465698,3641.8,3641.7,0.4427]
[1754463266484,6.84465698,3641.8,3641.7,0.002]
[1754463267489,6.84465698,3641.8,3641.7,0.4427]
[1754463267914,6.84465698,3641.8,3641.7,0.002]
[1754463269045,7.75655698,3641.8,3641.7,0.002]
[1754463270645,14.19181063,3641.8,3641.7,0.002]
[1754463272333,14.05455698,3641.8,3641.7,0.002]
[1754463272541,13.14265698,3641.8,3641.7,0.002]
[1754463272704,13.27999344,3641.8,3641.7,0.002]
[1754463272899,13.60205698,3641.8,3641.7,0.002]
[1754463273339,14.05455698,3641.8,3641.7,0.002]
[1754463275163,14.19039867,3641.8,3641.7,0.002]
[1754463277145,14.05455698,3641.8,3641.7,0.002]
[1754463279176,14.19028824,3641.8,3641.7,0.002]
[1754463280165,13.60205698,3641.8,3641.7,0.002]
[1754463280371,14.05455698,3641.8,3641.7,0.002]
[1754463281480,14.18951523,3641.8,3641.7,0.002]
[1754463282565,13.14265698,3641.8,3641.7,0.002]
[1754463283379,8.03065698,3641.8,3641.7,0.002]
[1754463283555,10.14265698,3641.8,3641.7,0.7456]
[1754463283739,6.8467621,3641.8,3641.7,0.7456]
[1754463284354,7.3967621,3641.8,3641.7,0.7456]
[1754463285066,5.2847621,3641.8,3641.7,0.7456]
[1754463285268,4.7347621,3641.8,3641.7,0.7456]
[1754463285446,4.7347621,3641.8,3641.7,3.49157028]
[1754463285649,6.8467621,3641.8,3641.7,4.11573457]
[1754463287252,6.8467621,3641.8,3641.7,3.18867028]
[1754463287451,6.8467621,3641.8,3641.7,0.002]
[1754463288054,6.8467621,3641.8,3641.7,0.4427]
[1754463288269,6.8467621,3641.8,3641.7,0.7456]
[1754463288472,4.7347621,3641.8,3641.7,0.7456]
[1754463288851,6.8467621,3641.8,3641.7,0.7456]
[1754463289075,6.8467621,3641.8,3641.7,1.36978102]
[1754463289272,6.8467621,3641.8,3641.7,0.002]
[1754463289987,10.14265698,3641.8,3641.7,0.002]
[1754463290293,14.09755698,3641.8,3641.7,0.002]
[1754463293695,3.29597028,3641.7,3641.6,1e-08]
[1754463293885,27.35354731,3641.7,3641.6,1e-08]
[1754463294065,28.58355022,3641.7,3641.6,1e-08]
[1754463294264,31.58355022,3641.7,3641.6,1e-08]
[1754463298487,6.29619651,3641.4,3641.3,1e-08]
[1754463298692,8.40719651,3641.4,3641.3,1e-08]
[1754463298896,10.57779553,3641.4,3641.3,1e-08]
[1754463299802,10.10729553,3641.4,3641.3,1e-08]
[1754463300165,7.51189553,3641.4,3641.3,1e-08]
[1754463300360,7.51189553,3641.4,3641.3,0.74360001]
[1754463300361,1.21569902,3641.4,3641.3,0.74360001]
[1754463300613,3.32669902,3641.4,3641.3,0.74360001]
[1754463300764,1.21569902,3641.4,3641.3,3.84306854]
[1754463300971,3.32669902,3641.4,3641.3,3.84306854]
[1754463301170,3.32669902,3641.4,3641.3,1.09679661]
[1754463301563,3.32669902,3641.4,3641.3,0.74360001]
[1754463303406,3.87669902,3641.4,3641.3,1e-08]
[1754463303718,1.21569902,3641.4,3641.3,1e-08]
[1754463303867,3.32669902,3641.4,3641.3,0.74360001]
[1754463304308,1.21569902,3641.4,3641.3,0.74360001]
[1754463304476,3.46429902,3641.4,3641.3,0.74360001]
[1754463305705,4.01429902,3641.4,3641.3,1e-08]
[1754463307603,6.76049553,3641.4,3641.3,1e-08]
[1754463307796,7.24489553,3641.4,3641.3,1e-08]
[1754463307986,6.76049553,3641.4,3641.3,1e-08]
[1754463308700,4.01429902,3641.4,3641.3,1e-08]
[1754463309077,6.76049553,3641.4,3641.3,1e-08]
[1754463309787,4.01429902,3641.4,3641.3,1e-08]
[1754463310605,1.35329902,3641.4,3641.3,3.48987194]
[1754463310813,3.46429902,3641.4,3641.3,4.11770263]
[1754463311515,1.35329902,3641.4,3641.3,4.11770263]
[1754463311682,3.32669902,3641.4,3641.3,4.11770263]
[1754463312393,3.32669902,3641.4,3641.3,8.39770262]
[1754463313114,3.32669902,3641.4,3641.3,7.65410262]
[1754463313321,3.32669902,3641.4,3641.3,8.09480262]
[1754463315320,3.32669902,3641.4,3641.3,7.65410262]
[1754463315514,3.32669902,3641.4,3641.3,8.09480262]
[1754463316216,3.32669902,3641.4,3641.3,8.39770262]
[1754463316518,3.32669902,3641.4,3641.3,4.90783069]
[1754463316710,3.32669902,3641.4,3641.3,4.28]
[1754463316711,3.46429902,3641.4,3641.3,4.28]
[1754463317418,4.40509902,3641.4,3641.3,4.28]
[1754463317601,7.15129553,3641.4,3641.3,4.28]
[1754463317796,4.40509902,3641.4,3641.3,4.28]
[1754463318207,4.40509902,3641.4,3641.3,1e-08]
[1754463319102,7.15129553,3641.4,3641.3,1e-08]
[1754463319934,7.70129553,3641.4,3641.3,1e-08]
[1754463321735,2.84409902,3641.4,3641.3,1e-08]
[1754463321910,7.70029553,3641.4,3641.3,1e-08]
[1754463324343,10.70029553,3641.4,3641.3,1e-08]
[1754463324644,33.82276231,3641.4,3641.3,1e-08]
[1754463324940,33.82376231,3641.4,3641.3,1e-08]
[1754463329047,10.70129553,3641.4,3641.3,1e-08]
[1754463330049,10.15129553,3641.4,3641.3,1e-08]
[1754463330612,5.59129553,3641.4,3641.3,1e-08]
[1754463330951,7.70129553,3641.4,3641.3,1e-08]
[1754463332248,33.82376231,3641.4,3641.3,1e-08]
[1754463332749,3.29634735,3641.2,3641.1,0.04]
[1754463332948,0.55,3641.1,3640.9,0.002]
[1754463333279,32.99097754,3641.0,3640.9,0.002]
[1754463333635,33.93177754,3641.0,3640.9,0.002]
[1754463334683,36.82677754,3641.0,3640.9,0.002]
[1754463334884,33.93177754,3641.0,3640.9,0.002]
[1754463338088,6.29657364,3640.9,3640.8,1e-08]
[1754463338436,6.29657364,3640.9,3638.8,0.4407]
[1754463338437,0.55,3640.6,3638.8,0.4407]
[1754463338640,0.55,3639.4,3639.1,0.4807]
[1754463338862,0.55,3639.4,3639.1,0.3429]
[1754463338863,0.1376,3639.2,3639.1,0.3429]
[1754463339374,0.1376,3639.2,3639.1,0.04]
[1754463339576,0.1376,3639.2,3639.1,0.7836]
[1754463339740,2.2476,3639.2,3639.1,0.7836]
[1754463340278,2.2476,3639.2,3639.1,0.4807]
[1754463340866,2.2476,3639.2,3639.1,3.85440978]
[1754463341748,0.1376,3639.2,3639.1,3.85440978]
[1754463341962,2.2476,3639.2,3639.1,3.85440978]
[1754463346065,2.2476,3639.2,3639.1,3.85640978]
[1754463346264,0.1376,3639.2,3639.1,3.85640978]
[1754463346462,2.2476,3639.2,3639.1,3.85640978]
[1754463348341,0.1376,3639.2,3639.1,3.85640978]
[1754463348495,2.2476,3639.2,3639.1,3.85640978]
[1754463349626,2.2476,3639.2,3639.1,3.11280978]
[1754463350005,2.2476,3639.2,3639.1,3.85640978]
[1754463350920,0.1376,3639.2,3639.1,3.85640978]
[1754463351098,4.27212731,3639.9,3639.7,2.74743369]
[1754463351099,1.27212731,3639.9,3639.7,2.74743369]
[1754463351432,2.11,3639.8,3639.6,2.74753557]
[1754463351952,0.1376,3639.7,3639.2,0.38564098]
[1754463352148,2.11,3639.8,3639.6,2.74755467]
[1754463352448,0.1376,3639.7,3639.6,2.74755467]
[1754463352631,1.1023,3639.7,3639.2,0.38564098]
[1754463352838,2.11,3639.8,3639.1,0.042]
[1754463352839,0.1376,3639.5,3639.1,0.042]
[1754463353026,2.11,3639.4,3639.2,2.74785667]
[1754463353226,2.11,3639.4,3639.1,2.7899256]
[1754463353435,2.11,3639.4,3639.3,2.74778116]
[1754463354151,2.11,3639.4,3639.2,2.74784052]
[1754463354553,2.11,3639.4,3639.1,0.042]
[1754463354554,0.4941,3639.3,3639.1,0.042]
[1754463354744,0.1376,3639.2,3639.1,0.042]
[1754463356238,1.1023,3639.2,3639.1,0.042]
[1754463357156,4.40015667,3639.2,3639.1,0.042]
[1754463357358,1.6523,3639.2,3639.1,0.042]
[1754463357539,4.40015667,3639.2,3639.1,0.042]
[1754463360265,7.40015667,3639.2,3639.1,0.042]
[1754463360822,8.6355391,3639.2,3639.1,0.042]
[1754463361021,3.29846086,3638.4,3638.3,0.002]
[1754463361224,5.54606086,3638.4,3638.3,0.002]
[1754463361437,1.6523,3638.4,3638.3,0.002]
[1754463361654,2.7976,3638.4,3638.3,0.002]
[1754463362154,0.6876,3638.4,3638.3,0.002]
[1754463362319,2.2476,3638.4,3638.3,2.7505364]
[1754463362520,2.2476,3638.4,3638.3,0.002]
[1754463362717,2.7976,3638.4,3638.3,0.002]
[1754463363120,1.19811365,3638.7,3638.3,2.7505364]
[1754463363321,2.2476,3638.4,3638.3,0.72196001]
[1754463363760,2.2476,3638.4,3638.3,3.47049641]
[1754463364138,0.1376,3638.4,3638.3,3.77339641]
[1754463364334,2.2476,3638.4,3638.3,3.02979641]
[1754463364539,2.2476,3638.4,3638.3,2.7505364]
[1754463364745,2.2476,3638.4,3638.3,0.002]
[1754463365056,3.2123,3638.4,3638.3,0.002]
[1754463365574,2.2476,3638.4,3638.3,0.002]
[1754463365872,3.2123,3638.4,3638.3,0.002]
[1754463366823,3.7623,3638.4,3638.3,0.002]
[1754463367246,0.6876,3638.4,3638.3,0.002]
[1754463367446,0.1376,3638.4,3638.3,0.002]
[1754463367646,0.1376,3638.4,3638.3,2.7505364]
[1754463368048,0.1376,3638.4,3638.3,3.34872703]
[1754463368374,1.19811365,3638.7,3638.6,2.74830978]
[1754463368561,3.30811365,3638.7,3638.6,2.74830978]
[1754463368761,3.44571365,3638.7,3638.6,2.74830978]
[1754463369055,3.44571365,3638.7,3638.3,0.60019063]
[1754463369056,3.44571365,3638.7,3638.5,2.74836181]
[1754463369275,0.1376,3638.5,3638.3,0.002]
[1754463369449,0.1376,3638.5,3638.4,2.74846086]
[1754463369647,0.9647,3638.5,3638.3,0.002]
[1754463369870,0.4706,3638.5,3638.3,0.002]
[1754463370070,0.4941,3638.4,3638.3,0.002]
[1754463370244,0.9647,3638.4,3638.3,0.002]
[1754463370827,5.82316086,3638.4,3638.3,0.002]
[1754463370953,0.9647,3638.4,3638.3,0.002]
[1754463371153,5.82316086,3638.4,3638.3,0.002]
[1754463371353,6.37316086,3638.4,3638.3,0.002]
[1754463372583,5.90256086,3638.4,3638.3,0.002]
[1754463372858,6.35116086,3638.4,3638.3,0.002]
[1754463374949,9.65216086,3638.4,3638.3,0.002]
[1754463376567,3.851,3638.4,3638.3,0.002]
[1754463376773,9.62836086,3638.4,3638.3,0.002]
[1754463376983,9.17976086,3638.4,3638.3,0.002]
[1754463377494,9.62836086,3638.4,3638.3,0.002]
[1754463377996,6.8799,3638.4,3638.3,0.002]
[1754463378501,3.301,3638.4,3638.3,0.002]
[1754463378792,5.411,3638.4,3638.3,3.4941364]
[1754463378992,3.301,3638.4,3638.3,4.1226125]
[1754463379192,5.411,3638.4,3638.3,4.1226125]
[1754463380898,3.301,3638.4,3638.3,27.24507928]
[1754463381203,5.411,3638.4,3638.3,27.38267928]
[1754463381799,5.411,3638.4,3638.3,3.3790125]
[1754463381968,5.5486,3638.4,3638.3,2.7505364]
[1754463382299,5.5486,3638.4,3638.3,3.1912364]
[1754463382901,5.5486,3638.4,3638.3,2.7505364]
[1754463384296,5.5486,3638.4,3638.3,3.1912364]
[1754463384499,0.1376,3638.5,3638.4,2.74846086]
[1754463384703,2.11,3638.5,3638.4,1.64672218]
[1754463385009,0.1376,3638.8,3638.3,0.002]
[1754463385187,0.1376,3638.8,3638.7,2.74823425]
[1754463385395,2.2476,3638.8,3638.7,2.74823425]
[1754463385979,3.302,3639.2,3639.1,2.74793218]
[1754463386176,5.5496,3639.2,3639.1,2.74793218]
[1754463394505,5.5496,3639.2,3638.6,0.1376]
[1754463394706,0.1376,3639.0,3638.5,2.74832772]
[1754463395015,0.1376,3638.6,3638.4,2.74844669]
[1754463395183,2.74801594,3639.0,3638.3,2.75051544]
[1754463395184,0.1376,3638.4,3638.3,2.75051544]
[1754463395885,2.2466,3638.4,3638.3,3.74533529]
[1754463396070,2.2466,3638.4,3638.3,4.04823529]
[1754463396423,2.109,3638.4,3638.3,3.74533529]
[1754463396574,2.109,3638.4,3638.3,3.88293529]
[1754463399905,2.109,3638.4,3638.3,3.44223529]
[1754463401381,2.109,3638.4,3638.3,2.88811544]
[1754463402398,2.5841,3638.4,3638.3,2.88811544]
[1754463402578,2.109,3638.4,3638.3,2.88811544]
[1754463403294,0.1376,3638.8,3638.7,2.74823425]
[1754463403476,2.2466,3638.8,3638.7,2.74823425]
[1754463403677,2.2466,3638.8,3638.6,2.74829198]
[1754463403874,0.9365,3638.7,3638.4,2.74844954]
[1754463404109,0.1376,3638.5,3638.3,2.75051246]
[1754463404285,0.1376,3638.5,3638.3,0.002]
[1754463404486,0.9365,3638.4,3638.3,0.002]
[1754463406098,0.9365,3638.4,3638.3,2.7505364]
[1754463406099,0.4751,3638.4,3638.3,2.7505364]
[1754463406302,2.109,3638.4,3638.3,2.7505364]
[1754463406503,0.1376,3638.5,3638.4,2.74846086]
[1754463406717,2.708,3638.5,3638.4,2.74846086]
[1754463406925,2.708,3638.5,3638.3,0.002]
[1754463407093,0.4614,3638.4,3638.3,0.002]
[1754463407298,0.9365,3638.4,3638.3,0.002]
[1754463409441,0.9365,3638.4,3638.3,2.7505364]
[1754463409614,2.2466,3638.5,3638.4,2.74846086]
[1754463409816,3.1831,3638.5,3638.4,2.74846086]
[1754463410227,3.1831,3638.5,3638.3,0.002]
[1754463410399,0.9365,3638.4,3638.3,0.002]
[1754463410737,1.4865,3638.4,3638.3,0.002]
[1754463413093,0.9365,3638.4,3638.3,0.002]
[1754463413300,3.0455,3638.4,3638.3,0.002]
[1754463414359,5.79396086,3638.4,3638.3,0.002]
[1754463416205,6.34396086,3638.4,3638.3,0.002]
[1754463420331,9.34396086,3638.4,3638.3,0.002]
[1754463422637,7.23496086,3638.4,3638.3,0.002]
[1754463422814,9.34396086,3638.4,3638.3,0.002]
[1754463426031,6.29846086,3638.4,3638.3,0.002]
[1754463426258,9.34396086,3638.4,3638.3,0.002]
[1754463430559,9.34396086,3638.4,3638.3,1e-08]
[1754463430968,9.45411386,3638.4,3638.3,1e-08]
[1754463433349,3.29861195,3638.2,3638.1,1e-08]
[1754463433552,8.40761195,3638.2,3638.1,1e-08]
[1754463433720,8.54521195,3638.2,3638.1,1e-08]
[1754463433921,9.48931195,3638.2,3638.1,1e-08]
[1754463436843,9.59946495,3638.2,3638.1,1e-08]
[1754463439953,32.72193173,3638.2,3638.1,1e-08]
[1754463440154,31.77783173,3638.2,3638.1,1e-08]
[1754463440464,32.72193173,3638.2,3638.1,1e-08]
[1754463440639,32.61177873,3638.2,3638.1,1e-08]
[1754463441854,30.50277873,3638.2,3638.1,1e-08]
[1754463442177,9.48831195,3638.2,3638.1,1e-08]
[1754463442978,7.38031195,3638.2,3638.1,1e-08]
[1754463443352,9.03751195,3638.2,3638.1,1e-08]
[1754463443683,5.74861195,3638.2,3638.1,1e-08]
[1754463443855,7.99421195,3638.2,3638.1,1e-08]
[1754463444051,9.48831195,3638.2,3638.1,1e-08]
[1754463445187,8.54421195,3638.2,3638.1,1e-08]
[1754463446873,6.43621195,3638.2,3638.1,1e-08]
[1754463447195,8.54421195,3638.2,3638.1,1e-08]
[1754463448164,12.33951195,3638.2,3638.1,1e-08]
[1754463449694,12.79031195,3638.2,3638.1,1e-08]
[1754463453101,12.33951195,3638.2,3638.1,1e-08]
[1754463453462,11.84621195,3638.2,3638.1,1e-08]
[1754463454006,12.79031195,3638.2,3638.1,1e-08]
[1754463455371,12.79031195,3638.2,3638.1,0.00200001]
[1754463455766,12.79131195,3638.2,3638.1,0.00200001]
[1754463456220,11.84721195,3638.2,3638.1,0.00200001]
[1754463459512,12.79131195,3638.2,3638.1,0.00200001]
[1754463465113,12.90146495,3638.2,3638.1,0.00200001]
[1754463467720,12.90146495,3638.2,3638.0,0.002]
[1754463467721,6.2986875,3638.1,3638.0,1e-08]
[1754463468223,7.1966875,3638.1,3638.0,1e-08]
[1754463470518,7.1966875,3638.1,3637.3,0.002]
[1754463470519,6.29921647,3637.4,3637.3,0.002]
[1754463470816,31.66628325,3637.4,3637.3,0.002]
[1754463471018,32.56428325,3637.4,3637.3,0.002]
[1754463471791,6.29936764,3637.2,3637.1,0.04]
[1754463472121,8.54396764,3637.2,3637.1,1e-08]
[1754463472286,9.44196764,3637.2,3637.1,1e-08]
[1754463472487,10.26837264,3637.2,3637.1,1e-08]
[1754463472682,3.30012375,3636.2,3636.1,0.04]
[1754463472891,11.84672375,3636.2,3636.1,0.04]
[1754463473084,11.70912375,3636.2,3636.1,0.04]
[1754463475016,12.60712375,3636.2,3636.1,0.04]
[1754463476714,12.60712375,3636.2,3636.1,1e-08]
[1754463477307,35.72959053,3636.2,3636.1,1e-08]
[1754463477526,35.87329513,3636.2,3636.1,1e-08]
[1754463477891,35.87329513,3636.2,3636.1,0.00200001]
[1754463478094,33.76629513,3636.2,3636.1,0.00200001]
[1754463478390,35.41599513,3636.2,3636.1,0.00200001]
[1754463479230,34.42529513,3636.2,3636.1,0.00200001]
[1754463479394,34.97529513,3636.2,3636.1,0.00200001]
[1754463480341,32.86829513,3636.2,3636.1,0.00200001]
[1754463480639,34.97529513,3636.2,3636.1,0.00200001]
[1754463482725,35.87329513,3636.2,3636.1,0.00200001]
[1754463483240,36.01089513,3636.2,3636.1,0.00200001]
[1754463483945,35.86719053,3636.2,3636.1,0.00200001]
[1754463490021,36.30989053,3636.2,3636.1,0.00200001]
[1754463490220,35.86719053,3636.2,3636.1,0.00200001]
[1754463491844,32.86219053,3636.2,3636.1,0.00200001]
[1754463492049,34.96919053,3636.2,3636.1,0.00200001]
[1754463493146,35.44629053,3636.2,3636.1,0.00200001]
[1754463494709,35.87899053,3636.2,3636.1,0.00200001]
[1754463498847,36.35969053,3636.2,3636.1,0.00200001]
[1754463499042,33.33929053,3636.2,3636.1,0.00200001]
[1754463499351,36.31969053,3636.2,3636.1,0.00200001]
[1754463499559,36.46338556,3636.2,3636.1,0.00200001]
[1754463501146,36.02268556,3636.2,3636.1,0.00200001]
[1754463501545,36.46338556,3636.2,3636.1,0.00200001]
[1754463502423,36.46338556,3636.2,3636.1,1e-08]
[1754463502832,3.30072894,3635.4,3635.3,0.002]
[1754463503155,31.66779572,3635.4,3635.3,0.002]
[1754463506256,32.57759572,3635.4,3635.3,0.002]
[1754463506834,8.54532894,3635.4,3635.3,0.002]
[1754463508480,6.43832894,3635.4,3635.3,0.002]
[1754463508767,7.99532894,3635.4,3635.3,0.7456]
[1754463509071,8.54532894,3635.4,3635.3,0.7456]
[1754463511236,11.84932894,3635.4,3635.3,0.7456]
[1754463512573,11.84932894,3635.4,3635.3,0.4427]
[1754463513174,11.84932894,3635.4,3635.3,0.002]
[1754463513675,12.75912894,3635.4,3635.3,0.002]
[1754463514770,12.90283139,3635.4,3635.3,0.002]
[1754463517334,36.02529817,3635.4,3635.3,0.002]
[1754463518576,6.33603139,3635.4,3635.3,0.002]
[1754463518872,11.44203139,3635.4,3635.3,0.4427]
[1754463519063,11.99203139,3635.4,3635.3,0.4427]
[1754463519581,9.88603139,3635.4,3635.3,0.002]
[1754463519869,11.99203139,3635.4,3635.3,0.002]
[1754463520237,12.46913139,3635.4,3635.3,0.002]
[1754463520470,12.90183139,3635.4,3635.3,0.002]
[1754463520976,11.99203139,3635.4,3635.3,0.002]
[1754463527981,12.75372894,3635.4,3635.3,0.002]
[1754463528551,29.42334706,3635.2,3635.1,0.04]
[1754463528746,31.52934706,3635.2,3635.1,0.04]
[1754463529300,32.43474706,3635.2,3635.1,0.04]
[1754463535160,3.0,3635.1,3634.1,0.04]
[1754463535367,6.30163722,3634.2,3634.1,0.04]
[1754463535600,8.40763722,3634.2,3634.1,0.04]
[1754463536304,8.87523722,3634.2,3634.1,0.04]
[1754463536459,9.31303722,3634.2,3634.1,0.04]
[1754463536662,8.40763722,3634.2,3634.1,0.04]
[1754463537081,8.87523722,3634.2,3634.1,0.04]
[1754463537464,8.40763722,3634.2,3634.1,0.04]
[1754463537875,9.37268899,3634.2,3634.1,0.04]
[1754463538275,10.27808899,3634.2,3634.1,1e-08]
[1754463538476,5.50357732,3634.0,3632.2,0.1376]
[1754463538677,6.30239458,3633.2,3632.3,0.4407]
[1754463538891,6.30239458,3633.2,3632.1,0.04]
[1754463538892,9.60739458,3633.2,3632.4,0.3029]
[1754463539081,12.62213383,3633.2,3633.1,0.4807]
[1754463539490,12.62213383,3633.2,3633.1,0.7836]
[1754463540000,10.51613383,3633.2,3633.1,0.7836]
[1754463540307,6.31873925,3633.2,3633.1,0.4807]
[1754463540493,6.31873925,3633.2,3633.1,0.7836]